[Event "*** Titled Tuesday Blitz"]
[Site "Chess.com"]
[Date "2019.08.06"]
[Round "1"]
[White "JonahWillow"]
[Black "twitchTriniCupid"]
[Result "1-0"]
[WhiteElo "2634"]
[BlackElo "2276"]
[TimeControl "180+2"]
[EndTime "13:09:35 PDT"]
[Termination "JonahWillow won by resignation"]

1. e4 {[%clk 0:03:00.9]} 1... c6 {[%clk 0:03:00.6]} 2. d4 {[%clk 0:02:59.9]}
2... d5 {[%clk 0:03:02.5]} 3. e5 {[%clk 0:03:01]} 3... Bf5 {[%clk 0:03:03.2]} 4.
h4 {[%clk 0:03:00.9]} 4... h6 {[%clk 0:03:03.5]} 5. g4 {[%clk 0:03:01.3]} 5...
Bd7 {[%clk 0:03:03.7]} 6. h5 {[%clk 0:03:02]} 6... c5 {[%clk 0:02:58.2]} 7. c3
{[%clk 0:03:02.7]} 7... Nc6 {[%clk 0:02:53]} 8. Na3 {[%clk 0:03:02.6]} 8... cxd4
{[%clk 0:02:43.4]} 9. cxd4 {[%clk 0:03:02.3]} 9... Qb6 {[%clk 0:02:41.2]} 10.
Nc2 {[%clk 0:02:47.5]} 10... Nb4 {[%clk 0:02:25]} 11. Ne3 {[%clk 0:02:26]} 11...
Bb5 {[%clk 0:01:30.7]} 12. Nf3 {[%clk 0:02:17.9]} 12... Bxf1 {[%clk 0:01:25.6]}
13. Kxf1 {[%clk 0:02:17.6]} 13... e6 {[%clk 0:01:25.3]} 14. a3 {[%clk
0:02:15.7]} 14... Nc6 {[%clk 0:01:25.3]} 15. Kg2 {[%clk 0:02:14.7]} 15... f6
{[%clk 0:01:25.3]} 16. Qd3 {[%clk 0:02:05.8]} 16... Nge7 {[%clk 0:01:23.7]} 17.
exf6 {[%clk 0:01:53.5]} 17... gxf6 {[%clk 0:01:24.2]} 18. b4 {[%clk 0:01:53.4]}
18... Bg7 {[%clk 0:01:12.2]} 19. b5 {[%clk 0:01:40.1]} 19... Nd8 {[%clk
0:01:09.7]} 20. Bd2 {[%clk 0:01:39]} 20... Nf7 {[%clk 0:01:05.5]} 21. Bb4 {[%clk
0:01:38.1]} 21... Nd6 {[%clk 0:01:02.9]} 22. a4 {[%clk 0:01:35.2]} 22... Qd8
{[%clk 0:01:02.8]} 23. Rac1 {[%clk 0:01:33.5]} 23... Qd7 {[%clk 0:01:02.9]} 24.
Nh4 {[%clk 0:01:30.7]} 24... O-O {[%clk 0:01:03]} 25. Ng6 {[%clk 0:01:26.3]}
25... Rfc8 {[%clk 0:01:03.4]} 26. Nxe7+ {[%clk 0:01:17.6]} 26... Qxe7 {[%clk
0:01:04.1]} 27. Qg6 {[%clk 0:01:13.5]} 27... Qd7 {[%clk 0:00:59.5]} 28. Qd3
{[%clk 0:00:59.9]} 28... Nf7 {[%clk 0:00:53.9]} 29. f4 {[%clk 0:00:56.6]} 29...
Rxc1 {[%clk 0:00:52.7]} 30. Rxc1 {[%clk 0:00:57.3]} 30... Rc8 {[%clk 0:00:54.3]}
31. Rc2 {[%clk 0:00:54.8]} 31... Nd6 {[%clk 0:00:52.9]} 32. f5 {[%clk
0:00:45.7]} 32... Rxc2+ {[%clk 0:00:45.2]} 33. Qxc2 {[%clk 0:00:46.4]} 33... Ne4
{[%clk 0:00:40.3]} 34. fxe6 {[%clk 0:00:40.7]} 34... Qxe6 {[%clk 0:00:41.4]} 35.
Nf5 {[%clk 0:00:42.2]} 35... Ng5 {[%clk 0:00:29.8]} 36. Ne7+ {[%clk 0:00:35.7]}
36... Kh8 {[%clk 0:00:25.4]} 37. Ng6+ {[%clk 0:00:32.6]} 37... Kg8 {[%clk
0:00:25.9]} 38. Kf1 {[%clk 0:00:25.8]} 38... Qxg4 {[%clk 0:00:23.1]} 39. Ne7+
{[%clk 0:00:24.3]} 39... Kh8 {[%clk 0:00:23.9]} 40. Qg6 {[%clk 0:00:17.1]} 40...
Qf3+ {[%clk 0:00:19.3]} 41. Ke1 {[%clk 0:00:18.2]} 41... Qe4+ {[%clk 0:00:18.3]}
42. Qxe4 {[%clk 0:00:15]} 42... Nxe4 {[%clk 0:00:16.2]} 43. Nxd5 {[%clk
0:00:15.6]} 43... f5 {[%clk 0:00:17.6]} 44. Ne7 {[%clk 0:00:14.1]} 44... Bxd4
{[%clk 0:00:17.2]} 45. Nxf5 {[%clk 0:00:15.4]} 45... Bg7 {[%clk 0:00:17.8]} 46.
Be7 {[%clk 0:00:13.6]} 46... Nc3 {[%clk 0:00:15.5]} 47. Nd6 {[%clk 0:00:08.7]}
47... b6 {[%clk 0:00:16.5]} 48. Nc8 {[%clk 0:00:07.9]} 48... Nxa4 {[%clk
0:00:16.9]} 49. Nxa7 {[%clk 0:00:09.5]} 49... Kg8 {[%clk 0:00:17.1]} 50. Bd8
{[%clk 0:00:10.9]} 50... Kf7 {[%clk 0:00:17.9]} 51. Kd2 {[%clk 0:00:11.6]} 51...
Ke6 {[%clk 0:00:18.4]} 52. Kd3 {[%clk 0:00:13]} 52... Kd5 {[%clk 0:00:19.5]} 53.
Nc8 {[%clk 0:00:13]} 53... Bf8 {[%clk 0:00:20.2]} 54. Nxb6+ {[%clk 0:00:13.8]}
54... Nxb6 {[%clk 0:00:20.4]} 55. Bxb6 {[%clk 0:00:15.7]} 55... Be7 {[%clk
0:00:21.1]} 56. Be3 {[%clk 0:00:16.7]} 56... Bf8 {[%clk 0:00:21.4]} 57. b6
{[%clk 0:00:18]} 57... Kc6 {[%clk 0:00:22.5]} 58. Ke4 {[%clk 0:00:19.6]} 1-0

[Event "*** Titled Tuesday Blitz"]
[Site "Chess.com"]
[Date "2019.08.06"]
[Round "1"]
[White "hermionegrangermagic"]
[Black "Lagmantr"]
[Result "1-0"]
[WhiteElo "2391"]
[BlackElo "2696"]
[TimeControl "180+2"]
[EndTime "13:09:48 PDT"]
[Termination "hermionegrangermagic won by resignation"]

1. e4 {[%clk 0:03:01.6]} 1... c6 {[%clk 0:03:01.2]} 2. d4 {[%clk 0:03:01.9]}
2... d5 {[%clk 0:03:03.1]} 3. exd5 {[%clk 0:03:02.6]} 3... cxd5 {[%clk 0:03:05]}
4. c4 {[%clk 0:03:03.1]} 4... Nf6 {[%clk 0:03:06.4]} 5. Nc3 {[%clk 0:03:04]}
5... g6 {[%clk 0:03:07.6]} 6. Qb3 {[%clk 0:03:03.5]} 6... Bg7 {[%clk 0:03:08.7]}
7. cxd5 {[%clk 0:03:04.6]} 7... O-O {[%clk 0:03:09.8]} 8. g3 {[%clk 0:03:05.3]}
8... Nbd7 {[%clk 0:03:10.9]} 9. Bg2 {[%clk 0:03:06.3]} 9... Nb6 {[%clk
0:03:11.9]} 10. Nge2 {[%clk 0:03:07.1]} 10... a5 {[%clk 0:03:09.1]} 11. a4
{[%clk 0:02:54.7]} 11... e6 {[%clk 0:03:04.6]} 12. d6 {[%clk 0:02:53]} 12...
Qxd6 {[%clk 0:03:02.5]} 13. Bf4 {[%clk 0:02:52]} 13... Qd8 {[%clk 0:03:02.1]}
14. Bg5 {[%clk 0:02:35.5]} 14... h6 {[%clk 0:02:45.3]} 15. Bxf6 {[%clk
0:02:35.9]} 15... Bxf6 {[%clk 0:02:47.2]} 16. O-O {[%clk 0:02:36.4]} 16... Bd7
{[%clk 0:02:11.7]} 17. d5 {[%clk 0:02:28.7]} 17... exd5 {[%clk 0:02:07.1]} 18.
Nxd5 {[%clk 0:02:13.2]} 18... Nxd5 {[%clk 0:02:06.8]} 19. Bxd5 {[%clk
0:02:15.1]} 19... Bh3 {[%clk 0:01:46.8]} 20. Rfd1 {[%clk 0:02:03.3]} 20... Qc7
{[%clk 0:01:37.7]} 21. Nf4 {[%clk 0:01:59.8]} 21... Bf5 {[%clk 0:01:31.3]} 22.
Bxb7 {[%clk 0:01:13.2]} 22... Rab8 {[%clk 0:01:05.9]} 23. Nd5 {[%clk 0:01:10.8]}
23... Qxb7 {[%clk 0:00:53.6]} 24. Nxf6+ {[%clk 0:01:07.8]} 24... Kg7 {[%clk
0:00:48.9]} 25. Qc3 {[%clk 0:00:42.8]} 25... Qxb2 {[%clk 0:00:49.3]} 26. Ne8+
{[%clk 0:00:40.9]} 26... Kg8 {[%clk 0:00:46.6]} 27. Qxb2 {[%clk 0:00:30.3]}
27... Rxb2 {[%clk 0:00:46.8]} 28. Nd6 {[%clk 0:00:31.5]} 28... Be6 {[%clk
0:00:41.9]} 29. Rdb1 {[%clk 0:00:26]} 29... Rfb8 {[%clk 0:00:42.4]} 30. Nb5
{[%clk 0:00:23.8]} 30... Rxb1+ {[%clk 0:00:39.3]} 31. Rxb1 {[%clk 0:00:24]}
31... Kg7 {[%clk 0:00:39.3]} 32. Rd1 {[%clk 0:00:22.1]} 32... Bb3 {[%clk
0:00:39.5]} 33. Rd4 {[%clk 0:00:23.1]} 33... Bxa4 {[%clk 0:00:39.6]} 34. Nc3
{[%clk 0:00:15.5]} 34... Bc6 {[%clk 0:00:40]} 35. Rc4 {[%clk 0:00:13]} 35... Bf3
{[%clk 0:00:39.4]} 36. Ra4 {[%clk 0:00:08.8]} 36... Rb3 {[%clk 0:00:39.2]} 37.
Rc4 {[%clk 0:00:09.1]} 37... a4 {[%clk 0:00:39.4]} 38. Kf1 {[%clk 0:00:07.6]}
38... a3 {[%clk 0:00:35.8]} 39. Ke1 {[%clk 0:00:08.8]} 39... a2 {[%clk
0:00:16.4]} 40. Nxa2 {[%clk 0:00:08.2]} 40... Rb2 {[%clk 0:00:16.6]} 41. Nc3
{[%clk 0:00:08.1]} 41... Bg4 {[%clk 0:00:15.3]} 42. Rxg4 {[%clk 0:00:08.6]}
42... Rb3 {[%clk 0:00:15.3]} 43. Rc4 {[%clk 0:00:09.3]} 43... Rb2 {[%clk
0:00:15.7]} 44. Nd1 {[%clk 0:00:10.4]} 44... Ra2 {[%clk 0:00:15.4]} 45. Rd4
{[%clk 0:00:11.6]} 45... h5 {[%clk 0:00:16.4]} 46. Rd2 {[%clk 0:00:13.1]} 46...
Ra1 {[%clk 0:00:17.5]} 47. Ke2 {[%clk 0:00:13.8]} 47... Kh6 {[%clk 0:00:18.9]}
48. Ne3 {[%clk 0:00:15]} 48... f5 {[%clk 0:00:20.3]} 49. h4 {[%clk 0:00:15.5]}
49... Kg7 {[%clk 0:00:20.3]} 50. Ng2 {[%clk 0:00:16.1]} 50... Kf6 {[%clk
0:00:21.6]} 51. Nf4 {[%clk 0:00:16.5]} 51... Ra6 {[%clk 0:00:22.6]} 52. Ke3
{[%clk 0:00:15.8]} 52... Rc6 {[%clk 0:00:22.4]} 53. Rb2 {[%clk 0:00:15.7]} 53...
Rc3+ {[%clk 0:00:23.3]} 54. Kd4 {[%clk 0:00:16.1]} 54... Rc1 {[%clk 0:00:22.4]}
55. Rb6+ {[%clk 0:00:16.8]} 55... Kf7 {[%clk 0:00:23.9]} 56. Rxg6 {[%clk
0:00:16.1]} 56... Rd1+ {[%clk 0:00:25.1]} 57. Ke3 {[%clk 0:00:16.5]} 57... Re1+
{[%clk 0:00:26]} 58. Kf3 {[%clk 0:00:17.4]} 1-0

[Event "*** Titled Tuesday Blitz"]
[Site "Chess.com"]
[Date "2019.08.06"]
[Round "1"]
[White "amintabatabaei"]
[Black "jposthuma"]
[Result "1-0"]
[WhiteElo "2902"]
[BlackElo "2467"]
[TimeControl "180+2"]
[EndTime "13:10:01 PDT"]
[Termination "amintabatabaei won by checkmate"]

1. Nf3 {[%clk 0:03:00.5]} 1... Nf6 {[%clk 0:02:56]} 2. c4 {[%clk 0:03:01.7]}
2... c5 {[%clk 0:02:33.9]} 3. Nc3 {[%clk 0:02:58.3]} 3... Nc6 {[%clk 0:02:34.9]}
4. e3 {[%clk 0:02:55.1]} 4... g6 {[%clk 0:02:34.9]} 5. d4 {[%clk 0:02:53.5]}
5... cxd4 {[%clk 0:02:36.1]} 6. exd4 {[%clk 0:02:55.4]} 6... d5 {[%clk
0:02:37.6]} 7. cxd5 {[%clk 0:02:56.4]} 7... Nxd5 {[%clk 0:02:38.2]} 8. Qb3
{[%clk 0:02:57]} 8... Nxc3 {[%clk 0:02:33.8]} 9. Bc4 {[%clk 0:02:56.9]} 9... e6
{[%clk 0:02:20.3]} 10. bxc3 {[%clk 0:02:47.1]} 10... Na5 {[%clk 0:02:05.9]} 11.
Bb5+ {[%clk 0:02:35]} 11... Bd7 {[%clk 0:02:06.9]} 12. Qa4 {[%clk 0:02:35.7]}
12... Nc6 {[%clk 0:01:35.1]} 13. Qd1 {[%clk 0:02:32.2]} 13... Qa5 {[%clk
0:01:30.5]} 14. a4 {[%clk 0:02:24]} 14... a6 {[%clk 0:01:15.6]} 15. Be2 {[%clk
0:02:22.7]} 15... Bg7 {[%clk 0:01:08.3]} 16. O-O {[%clk 0:02:22]} 16... O-O
{[%clk 0:01:08.2]} 17. Ba3 {[%clk 0:02:22]} 17... Rfc8 {[%clk 0:01:03.6]} 18.
Qb3 {[%clk 0:02:16.6]} 18... Qc7 {[%clk 0:00:55.5]} 19. Bc5 {[%clk 0:02:03.1]}
19... Na5 {[%clk 0:00:45.5]} 20. Qb4 {[%clk 0:01:54]} 20... b5 {[%clk 0:00:45]}
21. axb5 {[%clk 0:01:52.5]} 21... axb5 {[%clk 0:00:46.2]} 22. Bxb5 {[%clk
0:01:42.9]} 22... Nb7 {[%clk 0:00:18.2]} 23. Ba6 {[%clk 0:01:07.9]} 23... Rcb8
{[%clk 0:00:07.5]} 24. Bxb7 {[%clk 0:01:07]} 24... Rxa1 {[%clk 0:00:08.3]} 25.
Rxa1 {[%clk 0:01:08.9]} 25... Rxb7 {[%clk 0:00:06.7]} 26. Qa3 {[%clk 0:01:02]}
26... h6 {[%clk 0:00:06.1]} 27. h3 {[%clk 0:01:01.5]} 27... Bc6 {[%clk
0:00:06.6]} 28. Nd2 {[%clk 0:01:01.8]} 28... Bd5 {[%clk 0:00:07.2]} 29. Bb4
{[%clk 0:00:47.9]} 29... Qf4 {[%clk 0:00:07.6]} 30. Nf1 {[%clk 0:00:47.6]} 30...
Qe4 {[%clk 0:00:04.6]} 31. Ne3 {[%clk 0:00:47.2]} 31... f5 {[%clk 0:00:04.8]}
32. Nxd5 {[%clk 0:00:46.4]} 32... Qxd5 {[%clk 0:00:06.7]} 33. Re1 {[%clk
0:00:43.7]} 33... Kh7 {[%clk 0:00:03.9]} 34. Bc5 {[%clk 0:00:33.5]} 34... e5
{[%clk 0:00:04]} 35. dxe5 {[%clk 0:00:33.4]} 35... Bxe5 {[%clk 0:00:04.7]} 36.
Bb4 {[%clk 0:00:31.3]} 36... Rc7 {[%clk 0:00:04.2]} 37. Qa6 {[%clk 0:00:28.3]}
37... Bg7 {[%clk 0:00:02.8]} 38. Qe2 {[%clk 0:00:25.5]} 38... Qc4 {[%clk
0:00:03.3]} 39. Qd2 {[%clk 0:00:23]} 39... h5 {[%clk 0:00:03]} 40. Qd6 {[%clk
0:00:15.4]} 40... Bxc3 {[%clk 0:00:03.3]} 41. Bxc3 {[%clk 0:00:16.7]} 41... Qxc3
{[%clk 0:00:05.2]} 42. Re6 {[%clk 0:00:17.5]} 42... Rg7 {[%clk 0:00:05.9]} 43.
h4 {[%clk 0:00:16.5]} 43... Qc1+ {[%clk 0:00:06.7]} 44. Kh2 {[%clk 0:00:17.9]}
44... Qc8 {[%clk 0:00:05.9]} 45. Rf6 {[%clk 0:00:18]} 45... Qe8 {[%clk
0:00:05.8]} 46. Rf8 {[%clk 0:00:18.4]} 46... Qe7 {[%clk 0:00:06.7]} 47. Qb8
{[%clk 0:00:19.6]} 47... Qxh4+ {[%clk 0:00:07.2]} 48. Kg1 {[%clk 0:00:20.9]}
48... Kh6 {[%clk 0:00:03.5]} 49. Rh8+ {[%clk 0:00:20.6]} 49... Kg5 {[%clk
0:00:04.5]} 50. Qd8+ {[%clk 0:00:17.1]} 50... Kg4 {[%clk 0:00:05.4]} 51. Qd4+
{[%clk 0:00:18.6]} 51... Kg5 {[%clk 0:00:05]} 52. Qxg7 {[%clk 0:00:19.5]} 52...
Qe4 {[%clk 0:00:06.5]} 53. Qc7 {[%clk 0:00:16.6]} 53... Qe1+ {[%clk 0:00:06.1]}
54. Kh2 {[%clk 0:00:17.9]} 54... Qxf2 {[%clk 0:00:08]} 55. Qg3+ {[%clk
0:00:18.9]} 55... Qxg3+ {[%clk 0:00:08.7]} 56. Kxg3 {[%clk 0:00:20.8]} 56... f4+
{[%clk 0:00:10.6]} 57. Kf3 {[%clk 0:00:21.9]} 57... Kh4 {[%clk 0:00:08.4]} 58.
Ra8 {[%clk 0:00:23.8]} 58... g5 {[%clk 0:00:09.6]} 59. Ra1 {[%clk 0:00:23.8]}
59... g4+ {[%clk 0:00:09.5]} 60. Kxf4 {[%clk 0:00:25]} 60... g3 {[%clk
0:00:11.4]} 61. Rh1# {[%clk 0:00:26.2]} 1-0

[Event "*** Titled Tuesday Blitz"]
[Site "Chess.com"]
[Date "2019.08.06"]
[Round "1"]
[White "edgarrodrigues"]
[Black "KhazarBabazada"]
[Result "0-1"]
[WhiteElo "2430"]
[BlackElo "2837"]
[TimeControl "180+2"]
[EndTime "13:10:07 PDT"]
[Termination "KhazarBabazada won by resignation"]

1. e4 {[%clk 0:03:01.8]} 1... Nf6 {[%clk 0:02:58.5]} 2. e5 {[%clk 0:03:02.6]}
2... Nd5 {[%clk 0:02:58.1]} 3. d4 {[%clk 0:03:03.8]} 3... d6 {[%clk 0:02:58.6]}
4. Nf3 {[%clk 0:03:05.2]} 4... g6 {[%clk 0:02:59.6]} 5. Bc4 {[%clk 0:03:05.4]}
5... Nb6 {[%clk 0:02:59.8]} 6. Bb3 {[%clk 0:03:06.2]} 6... Bg7 {[%clk
0:03:01.3]} 7. O-O {[%clk 0:03:05.6]} 7... O-O {[%clk 0:03:02.8]} 8. Qe2 {[%clk
0:03:01.4]} 8... Nc6 {[%clk 0:03:03.8]} 9. h3 {[%clk 0:02:58.4]} 9... a5 {[%clk
0:03:04.1]} 10. a4 {[%clk 0:02:58.5]} 10... dxe5 {[%clk 0:03:05]} 11. dxe5
{[%clk 0:02:59.7]} 11... Be6 {[%clk 0:03:05]} 12. Bxe6 {[%clk 0:02:58.7]} 12...
fxe6 {[%clk 0:03:06.9]} 13. Re1 {[%clk 0:02:57.7]} 13... Rf5 {[%clk 0:03:06.5]}
14. Qb5 {[%clk 0:02:45.5]} 14... Nd4 {[%clk 0:02:58]} 15. Nxd4 {[%clk 0:02:43]}
15... Qxd4 {[%clk 0:02:59.9]} 16. Be3 {[%clk 0:02:40.2]} 16... Qxe5 {[%clk
0:03:01.1]} 17. Qb3 {[%clk 0:02:39.1]} 17... Nd5 {[%clk 0:02:58.9]} 18. Qxb7
{[%clk 0:02:36.2]} 18... Raf8 {[%clk 0:02:59.6]} 19. Nd2 {[%clk 0:02:16.9]}
19... Nxe3 {[%clk 0:02:51]} 20. Rxe3 {[%clk 0:02:18.8]} 20... Qxb2 {[%clk
0:02:51.8]} 21. Qxb2 {[%clk 0:01:58.2]} 21... Bxb2 {[%clk 0:02:53.7]} 22. Rf1
{[%clk 0:01:52.1]} 22... Bd4 {[%clk 0:02:40.1]} 23. Re2 {[%clk 0:01:53.1]} 23...
Kf7 {[%clk 0:02:24.5]} 24. Ne4 {[%clk 0:01:41.8]} 24... Bb6 {[%clk 0:02:22.1]}
25. g4 {[%clk 0:01:37]} 25... Re5 {[%clk 0:02:18]} 26. Kg2 {[%clk 0:01:29.4]}
26... Rd8 {[%clk 0:02:15.1]} 27. f4 {[%clk 0:01:27.1]} 27... Red5 {[%clk
0:02:15.9]} 28. Ng5+ {[%clk 0:01:27.2]} 28... Ke8 {[%clk 0:02:14.5]} 29. Nxh7
{[%clk 0:01:18.9]} 29... Rd2 {[%clk 0:02:13.2]} 30. Re1 {[%clk 0:01:17.8]} 30...
Rxe2+ {[%clk 0:02:11.9]} 31. Rxe2 {[%clk 0:01:19.7]} 31... Rd4 {[%clk
0:02:13.8]} 32. Kf3 {[%clk 0:01:11.8]} 32... Rxa4 {[%clk 0:02:14.5]} 33. Rxe6
{[%clk 0:01:05.6]} 33... Ra3+ {[%clk 0:02:12]} 34. Kg2 {[%clk 0:01:06.2]} 34...
a4 {[%clk 0:02:03.2]} 35. Rxg6 {[%clk 0:00:58.3]} 35... Kd7 {[%clk 0:01:54.6]}
36. Nf8+ {[%clk 0:00:47.1]} 36... Kc8 {[%clk 0:01:55.1]} 37. Rc6 {[%clk
0:00:39.4]} 37... Ra1 {[%clk 0:01:51]} 38. g5 {[%clk 0:00:35.1]} 38... a3 {[%clk
0:01:50]} 39. Rc3 {[%clk 0:00:36]} 39... a2 {[%clk 0:01:51.2]} 40. Ra3 {[%clk
0:00:36.6]} 40... Rg1+ {[%clk 0:01:49.9]} 41. Kf3 {[%clk 0:00:37.8]} 41... a1=Q
{[%clk 0:01:46.3]} 42. Rxa1 {[%clk 0:00:39.7]} 42... Rxa1 {[%clk 0:01:47.7]} 43.
h4 {[%clk 0:00:39.9]} 43... Rh1 {[%clk 0:01:48]} 44. Kg4 {[%clk 0:00:40.3]}
44... Kd8 {[%clk 0:01:42.8]} 45. h5 {[%clk 0:00:40.1]} 45... Ke8 {[%clk
0:01:43.5]} 46. Ne6 {[%clk 0:00:41.1]} 46... Kf7 {[%clk 0:01:42.1]} 47. Nd8+
{[%clk 0:00:38.4]} 47... Kg8 {[%clk 0:01:36.3]} 48. h6 {[%clk 0:00:33.9]} 48...
Rd1 {[%clk 0:01:34.4]} 49. Ne6 {[%clk 0:00:32.9]} 49... Rd6 {[%clk 0:01:30.9]}
50. Kf5 {[%clk 0:00:28.8]} 50... Be3 {[%clk 0:01:06.5]} 51. Nxc7 {[%clk
0:00:21.3]} 51... Kf7 {[%clk 0:00:59.4]} 52. c4 {[%clk 0:00:19.8]} 52... Rc6
{[%clk 0:00:51.5]} 53. Nd5 {[%clk 0:00:20.2]} 53... e6+ {[%clk 0:00:48]} 54. Ke4
{[%clk 0:00:21.2]} 54... Rxc4+ {[%clk 0:00:48.7]} 55. Kxe3 {[%clk 0:00:21.8]}
55... exd5 {[%clk 0:00:50.6]} 56. f5 {[%clk 0:00:23]} 56... Rg4 {[%clk
0:00:49.2]} 57. g6+ {[%clk 0:00:23.2]} 57... Kf6 {[%clk 0:00:50.1]} 58. Kf3
{[%clk 0:00:22]} 58... Rg5 {[%clk 0:00:47.6]} 59. g7 {[%clk 0:00:21.3]} 59...
Rxf5+ {[%clk 0:00:47.2]} 60. Ke3 {[%clk 0:00:22.4]} 60... Rg5 {[%clk 0:00:45.5]}
61. Kd4 {[%clk 0:00:21.8]} 61... Kf7 {[%clk 0:00:46.8]} 0-1

[Event "*** Titled Tuesday Blitz"]
[Site "Chess.com"]
[Date "2019.08.06"]
[Round "1"]
[White "playablecharacter"]
[Black "IMRosen"]
[Result "1/2-1/2"]
[WhiteElo "2229"]
[BlackElo "2600"]
[TimeControl "180+2"]
[EndTime "13:10:11 PDT"]
[Termination "Game drawn - insufficient material"]

1. d4 {[%clk 0:03:00.6]} 1... Nf6 {[%clk 0:03:00]} 2. c4 {[%clk 0:03:00.9]} 2...
e6 {[%clk 0:03:00.3]} 3. Nc3 {[%clk 0:03:01.3]} 3... Bb4 {[%clk 0:03:00]} 4. Qc2
{[%clk 0:03:01.9]} 4... d5 {[%clk 0:02:58.7]} 5. cxd5 {[%clk 0:03:00.4]} 5...
exd5 {[%clk 0:02:58.5]} 6. Bg5 {[%clk 0:03:00.3]} 6... h6 {[%clk 0:02:58.9]} 7.
Bxf6 {[%clk 0:03:00]} 7... Qxf6 {[%clk 0:02:59.2]} 8. a3 {[%clk 0:03:00.6]} 8...
Bxc3+ {[%clk 0:02:55.2]} 9. Qxc3 {[%clk 0:03:01.1]} 9... O-O {[%clk 0:02:52.4]}
10. e3 {[%clk 0:03:01.3]} 10... c6 {[%clk 0:02:45.9]} 11. Nf3 {[%clk 0:03:00.3]}
11... Bf5 {[%clk 0:02:38]} 12. b4 {[%clk 0:02:52.9]} 12... Nd7 {[%clk
0:02:27.9]} 13. Be2 {[%clk 0:02:49.6]} 13... Nb6 {[%clk 0:02:02.2]} 14. O-O
{[%clk 0:02:46.1]} 14... a6 {[%clk 0:01:56.9]} 15. a4 {[%clk 0:02:38.3]} 15...
Nc8 {[%clk 0:01:57.9]} 16. b5 {[%clk 0:02:23.9]} 16... Nd6 {[%clk 0:01:41]} 17.
bxc6 {[%clk 0:02:16.9]} 17... Ne4 {[%clk 0:01:41.6]} 18. Qa5 {[%clk 0:02:04.5]}
18... bxc6 {[%clk 0:01:37.1]} 19. Rab1 {[%clk 0:01:58.2]} 19... Qd8 {[%clk
0:00:59.6]} 20. Qxd8 {[%clk 0:01:50.5]} 20... Rfxd8 {[%clk 0:01:01.5]} 21. Rb6
{[%clk 0:01:37.1]} 21... c5 {[%clk 0:01:02.8]} 22. Rxa6 {[%clk 0:01:32.6]} 22...
c4 {[%clk 0:01:02.3]} 23. Rxa8 {[%clk 0:01:28.1]} 23... Rxa8 {[%clk 0:01:04.2]}
24. Ra1 {[%clk 0:01:26.2]} 24... Nc3 {[%clk 0:01:05.5]} 25. Kf1 {[%clk
0:01:17.8]} 25... Rxa4 {[%clk 0:01:01.2]} 26. Rxa4 {[%clk 0:01:18.3]} 26... Nxa4
{[%clk 0:01:03.1]} 27. Nh4 {[%clk 0:01:10.7]} 27... Be4 {[%clk 0:00:42.1]} 28.
f3 {[%clk 0:01:09.3]} 28... Bc2 {[%clk 0:00:36.7]} 29. e4 {[%clk 0:01:04.1]}
29... Nc3 {[%clk 0:00:33.2]} 30. exd5 {[%clk 0:01:02.5]} 30... g5 {[%clk
0:00:34.2]} 31. d6 {[%clk 0:00:55.6]} 31... Kf8 {[%clk 0:00:34.3]} 32. d7 {[%clk
0:00:49.6]} 32... Ke7 {[%clk 0:00:34.8]} 33. Bxc4 {[%clk 0:00:49.2]} 33... Kxd7
{[%clk 0:00:33.4]} 34. Bxf7 {[%clk 0:00:46.6]} 34... gxh4 {[%clk 0:00:34.3]} 35.
g3 {[%clk 0:00:44.5]} 35... Ke7 {[%clk 0:00:26.4]} 36. Bc4 {[%clk 0:00:43.1]}
36... h3 {[%clk 0:00:23.7]} 37. Ba6 {[%clk 0:00:40.7]} 37... Ba4 {[%clk
0:00:22.4]} 38. Kf2 {[%clk 0:00:38]} 38... Kf6 {[%clk 0:00:21.6]} 39. g4 {[%clk
0:00:38.7]} 39... Nd5 {[%clk 0:00:19.9]} 40. Kg3 {[%clk 0:00:38.8]} 40... Nc7
{[%clk 0:00:12.5]} 41. Bc4 {[%clk 0:00:38.5]} 41... Bd1 {[%clk 0:00:09.3]} 42.
f4 {[%clk 0:00:36.5]} 42... Kg6 {[%clk 0:00:09.8]} 43. d5 {[%clk 0:00:35.4]}
43... Ne8 {[%clk 0:00:10.8]} 44. Bd3+ {[%clk 0:00:35.1]} 44... Kf6 {[%clk
0:00:10.3]} 45. Kxh3 {[%clk 0:00:36.5]} 45... Nd6 {[%clk 0:00:10]} 46. Kg3
{[%clk 0:00:36.9]} 46... Bb3 {[%clk 0:00:08.8]} 47. h4 {[%clk 0:00:33.1]} 47...
Kg7 {[%clk 0:00:09.3]} 48. h5 {[%clk 0:00:29.6]} 48... Bxd5 {[%clk 0:00:06.2]}
49. g5 {[%clk 0:00:30.6]} 49... Be6 {[%clk 0:00:05]} 50. Kf3 {[%clk 0:00:21.3]}
50... Bf7 {[%clk 0:00:03.8]} 51. Kg4 {[%clk 0:00:20.3]} 51... Be6+ {[%clk
0:00:05.1]} 52. f5 {[%clk 0:00:21.5]} 52... Bd7 {[%clk 0:00:04.6]} 53. Kf4
{[%clk 0:00:19.7]} 53... hxg5+ {[%clk 0:00:06.2]} 54. Kxg5 {[%clk 0:00:21.3]}
54... Ne8 {[%clk 0:00:07.8]} 55. h6+ {[%clk 0:00:22]} 55... Kf7 {[%clk
0:00:09.1]} 56. Bc4+ {[%clk 0:00:22.8]} 56... Kf8 {[%clk 0:00:09.8]} 57. Kg6
{[%clk 0:00:23.2]} 57... Nd6 {[%clk 0:00:10.1]} 58. Be6 {[%clk 0:00:23]} 58...
Be8+ {[%clk 0:00:11.4]} 59. Kf6 {[%clk 0:00:23.3]} 59... Ne4+ {[%clk 0:00:11.9]}
60. Ke5 {[%clk 0:00:24.5]} 60... Ng5 {[%clk 0:00:13.1]} 61. Kf6 {[%clk
0:00:25.3]} 61... Nh7+ {[%clk 0:00:14.6]} 62. Ke5 {[%clk 0:00:25.7]} 62... Ke7
{[%clk 0:00:16.2]} 63. Bg8 {[%clk 0:00:25.6]} 63... Nf6 {[%clk 0:00:10.2]} 64.
h7 {[%clk 0:00:25.4]} 64... Nxh7 {[%clk 0:00:08.8]} 65. Bxh7 {[%clk 0:00:27.3]}
65... Kf8 {[%clk 0:00:10]} 66. Kf6 {[%clk 0:00:27.5]} 66... Bd7 {[%clk
0:00:10.6]} 67. Bg6 {[%clk 0:00:28.4]} 67... Bxf5 {[%clk 0:00:11.8]} 1/2-1/2